[Event "Vladimir Bato Kontic Memorial 2021"]
[Site "Niksic"]
[Date "2021.04.20"]
[Round "7.4"]
[White "Osmak, Iulija"]
[Black "Sanal, Vahap"]
[Result "0-1"]
[ECO "E73"]
[WhiteElo "2428"]
[BlackElo "2572"]
[Annotator "ChessBase"]
[PlyCount "84"]
[EventDate "2021.04.17"]
[EventType "swiss"]
[EventCountry "MNE"]
[SourceTitle "playchess.com"]
[Source "ChessBase"]
[SourceQuality "1"]
[TimeControl "40/5400+30:1800+30"]

1. d4 {[%emt 0:00:17]} Nf6 {[%emt 0:01:30]} 2. c4 {[%emt 0:00:20]} g6 {[%emt 0:00:17]} 3. Nc3 {[%emt 0:00:07]} Bg7 {[%emt 0:00:06]} 4. e4 {[%emt 0:00:08]} O-O {[%emt 0:00:06]} 5. Be2 {[%emt 0:02:29]} d6 {[%emt 0:00:20]} 6. Be3 {[%emt 0:00:08]} Nc6 {[%emt 0:00:17]} 7. d5 {[%emt 0:01:50]} Ne5 {[%emt 0:00:21]} 8. h3 {[%emt 0:03:07]} e6 {[%emt 0:02:23]} 9. Nf3 {[%emt 0:03:20]} Nxf3+ 10. Bxf3 {[%emt 0:00:16]} Nd7 {[%emt 0:05:19]} 11. Qd2 {[%emt 0:01:21]} Nc5 {[%emt 0:05:23]} 12. O-O {[%emt 0:09:11]} a5 {[%emt 0:07:59]} 13. Rab1 {[%emt 0:16:34]} e5 {[%emt 0:08:13]} 14. Bd1 {[%emt 0:03:29]} f5 {[%emt 0:15:14]} 15. exf5 {[%emt 0:01:38]} Bxf5 {[%emt 0:03:26]} 16. Bc2 {[%emt 0:00:09]} Qh4 {[%emt 0:00:43]} 17. Bxf5 {[%emt 0:05:26]} gxf5 {[%emt 0:00:32]} 18. Bxc5 {[%emt 0:12:36]} dxc5 {[%emt 0:00:51]} 19. Nb5 {[%emt 0:00:06]} Rac8 {[%emt 0:15:09]} 20. Qxa5 {[%emt 0:08:07]} Rf6 {[%emt 0:02:05]} 21. Qc3 {[%emt 0:17:41]} Rg6 {[%emt 0:01:07]} 22. Kh1 {[%emt 0:04:33]} c6 {[%emt 0:09:33]} 23. dxc6 {[%emt 0:00:54]} bxc6 {[%emt 0:00:07]} 24. Na3 {[%emt 0:00:25]} e4 {[%emt 0:00:04]} 25. Qe1 {[%emt 0:00:47]} Qg5 {[%emt 0:01:52]} 26. Rg1 {[%emt 0:00:39]} Re8 {[%emt 0:00:26]} 27. Nc2 {[%emt 0:01:23]} Rh6 {[%emt 0:05:02]} 28. b4 {[%emt 0:02:36]} f4 {[%emt 0:01:02]} 29. Rb3 {[%emt 0:00:31]} Qf5 {[%emt 0:00:45]} 30. Qf1 {[%emt 0:04:08]} e3 {[%emt 0:02:17]} 31. Nxe3 {[%emt 0:00:41]} fxe3 {[%emt 0:00:10]} 32. fxe3 {[%emt 0:00:32]} Qe6 {[%emt 0:03:52]} 33. bxc5 {[%emt 0:00:24]} Rf8 {[%emt 0:00:15]} 34. Qe2 {[%emt 0:00:02]} Qe4 {[%emt 0:00:15]} 35. Rf1 {[%emt 0:00:59]} Rxh3+ {[%emt 0:02:24]} 36. Kg1 {[%emt 0:00:01]} Rh6 {[%emt 0:01:34]} 37. Rxf8+ {[%emt 0:00:11]} Bxf8 {[%emt 0:00:02]} 38. Rb8 {[%emt 0:01:18]} Qh4 {[%emt 0:01:00]} 39. Ra8 {[%emt 0:00:33]} Qh2+ {[%emt 0:00:14]} 40. Kf2 {[%emt 0:00:00]} Rf6+ {[%emt 0:00:00]} 41. Ke1 {[%emt 0:15:19]} Qg1+ {[%emt 0:15:09]} 42. Kd2 {[%emt 0:00:18]} Rf2 {[%emt 0:00:03]} 0-1

[Event "Vladimir Bato Kontic Memorial 2021"]
[Site "Niksic"]
[Date "2021.04.20"]
[Round "7.6"]
[White "Runic, Zoran"]
[Black "Basso, Pier Luigi"]
[Result "0-1"]
[ECO "D45"]
[WhiteElo "2378"]
[BlackElo "2552"]
[Annotator "ChessBase"]
[PlyCount "64"]
[EventDate "2021.04.17"]
[EventType "swiss"]
[EventCountry "MNE"]
[SourceTitle "playchess.com"]
[Source "ChessBase"]
[SourceQuality "1"]
[TimeControl "40/5400+30:1800+30"]

1. Nf3 {[%emt 0:00:00]} d5 {[%emt 0:12:30]} 2. d4 {[%emt 0:00:01]} Nf6 {[%emt 0:00:07]} 3. c4 {[%emt 0:00:39]} c6 {[%emt 0:00:04]} 4. Nc3 {[%emt 0:00:53]} e6 {[%emt 0:00:09]} 5. e3 {[%emt 0:01:58]} Nbd7 {[%emt 0:00:06]} 6. Qc2 {[%emt 0:01:37]} b6 {[%emt 0:00:37]} 7. cxd5 {[%emt 0:01:14]} cxd5 {[%emt 0:00:06]} 8. Bd3 {[%emt 0:04:27]} Bb7 {[%emt 0:00:27]} 9. Bd2 {[%emt 0:01:51]} a6 {[%emt 0:01:48]} 10. Ng1 {[%emt 0:05:36]} Rc8 {[%emt 0:05:42]} 11. f3 {[%emt 0:02:46]} b5 {[%emt 0:03:38]} 12. a3 {[%emt 0:00:59]} e5 {[%emt 0:03:57]} 13. Bf5 {[%emt 0:01:11]} exd4 {[%emt 0:05:57]} 14. exd4 {[%emt 0:00:06]} g6 {[%emt 0:00:05]} 15. Bh3 {[%emt 0:01:36]} Bg7 {[%emt 0:00:31]} 16. Nge2 {[%emt 0:00:35]} O-O {[%emt 0:00:09]} 17. O-O {[%emt 0:01:55]} Qb6 {[%emt 0:04:29]} 18. Kh1 {[%emt 0:01:27]} Rcd8 {[%emt 0:03:38]} 19. Qd3 {[%emt 0:02:55]} Nb8 {[%emt 0:01:15]} 20. a4 {[%emt 0:01:32]} Rfe8 {[%emt 0:14:57]} 21. a5 {[%emt 0:00:51]} Qa7 {[%emt 0:03:10]} 22. Nc1 {[%emt 0:01:23]} Bc8 {[%emt 0:04:47]} 23. Bxc8 {[%emt 0:02:09]} Rxc8 {[%emt 0:00:01]} 24. N3e2 {[%emt 0:02:44]} Rc4 {[%emt 0:03:53]} 25. b3 {[%emt 0:03:24]} Rcc8 {[%emt 0:00:14]} 26. Bb4 {[%emt 0:00:40]} Bf8 {[%emt 0:01:10]} 27. Bxf8 {[%emt 0:00:35]} Kxf8 {[%emt 0:00:07]} 28. Qd2 {[%emt 0:00:07]} Qe7 {[%emt 0:01:10]} 29. Kg1 {[%emt 0:05:42]} Nc6 {[%emt 0:02:58]} 30. Kf2 {[%emt 0:04:32]} Nb4 {[%emt 0:01:33]} 31. Nc3 {[%emt 0:00:16]} Nc2 {[%emt 0:02:07]} 32. Ra2 {[%emt 0:02:48]} Qe3+ {[%emt 0:00:46]} 0-1

[Event "Vladimir Bato Kontic Memorial 2021"]
[Site "Niksic"]
[Date "2021.04.20"]
[Round "7.7"]
[White "Potpara, Nikola"]
[Black "Injac, Teodora"]
[Result "0-1"]
[ECO "A20"]
[WhiteElo "2370"]
[BlackElo "2340"]
[Annotator "NA"]
[PlyCount "82"]
[EventDate "2021.04.17"]
[EventType "swiss"]
[EventCountry "MNE"]
[SourceTitle "playchess.com"]
[Source "ChessBase"]
[SourceQuality "1"]
[TimeControl "40/5400+30:1800+30"]

1. c4 {[%emt 0:02:47]} e5 {[%emt 0:01:34]} 2. g3 {[%emt 0:01:52]} Nf6 {[%emt 0:00:37]} 3. Bg2 {[%emt 0:00:15]} c6 {[%emt 0:00:21]} 4. d4 {[%emt 0:03:24]} e4 {[%emt 0:01:47]} 5. d5 {[%emt 0:01:43]} Bb4+ {[%emt 0:00:58]} 6. Bd2 {[%emt 0:03:41]} Qe7 {[%emt 0:02:26]} 7. Nc3 {[%emt 0:01:09]} O-O {[%emt 0:06:00]} 8. a3 {[%emt 0:09:32]} Bxc3 {[%emt 0:08:17]} 9. Bxc3 {[%emt 0:00:07]} d6 {[%emt 0:00:43]} 10. e3 {[%emt 0:12:59]} Bf5 {[%emt 0:04:35]} 11. Ne2 {[%emt 0:00:49]} c5 {[%emt 0:01:00]} 12. h3 {[%emt 0:01:44]} h6 {[%emt 0:17:52]} 13. g4 {[%emt 0:02:45]} Bh7 {[%emt 0:00:23]} 14. Ng3 {[%emt 0:11:43]} Nbd7 {[%emt 0:04:04]} 15. h4 {[%emt 0:04:25]} Ne5 {[%emt 0:04:52]} 16. g5 {[%emt 0:01:36]} Nd3+ {[%emt 0:04:11]} 17. Qxd3 {[%emt 0:01:49]} exd3 {[%emt 0:00:04]} 18. gxf6 {[%emt 0:00:05]} Qd7 {[%emt 0:18:46]} 19. Bh3 {[%emt 0:19:46]} Qa4 {[%emt 0:00:51]} 20. fxg7 {[%emt 0:00:24]} Rfe8 {[%emt 0:07:27]} 21. O-O {[%emt 0:01:48]} Qxc4 {[%emt 0:01:38]} 22. Nh5 {[%emt 0:02:07]} Re5 {[%emt 0:06:08]} 23. Nf6+ {[%emt 0:00:06]} Kxg7 {[%emt 0:00:05]} 24. f4 {[%emt 0:00:03]} Rxe3 {[%emt 0:04:08]} 25. Ng4+ {[%emt 0:00:35]} Qxc3 {[%emt 0:00:21]} 26. bxc3 {[%emt 0:00:17]} Rxh3 {[%emt 0:00:03]} 27. Kg2 {[%emt 0:01:36]} Rxh4 {[%emt 0:00:01]} 28. Kg3 {[%emt 0:00:06]} Rh5 {[%emt 0:00:36]} 29. c4 {[%emt 0:00:39]} Re8 {[%emt 0:01:25]} 30. Rae1 {[%emt 0:02:20]} Rxe1 {[%emt 0:00:07]} 31. Rxe1 {[%emt 0:00:07]} b5 {[%emt 0:00:36]} 32. Ne3 {[%emt 0:04:00]} bxc4 {[%emt 0:00:24]} 33. Kg4 {[%emt 0:00:05]} Rh2 {[%emt 0:00:38]} 34. Nxc4 {[%emt 0:00:06]} Rc2 {[%emt 0:03:03]} 35. Nxd6 {[%emt 0:00:10]} d2 {[%emt 0:00:09]} 36. Rd1 {[%emt 0:00:09]} c4 {[%emt 0:00:43]} 37. f5 {[%emt 0:11:00]} c3 {[%emt 0:00:07]} 38. Ne4 {[%emt 0:00:22]} Rc1 {[%emt 0:00:46]} 39. f6+ {[%emt 0:00:28]} Kg6 {[%emt 0:00:48]} 40. Nxc3 {[%emt 0:00:00]} Rxd1 {[%emt 0:00:00]} 41. Nxd1 {[%emt 0:15:23]} Kxf6 {[%emt 0:15:31]} 0-1

[Event "Vladimir Bato Kontic Memorial 2021"]
[Site "Niksic"]
[Date "2021.04.20"]
[Round "7.8"]
[White "Nikac, Predrag"]
[Black "Sahin, Ozgun"]
[Result "0-1"]
[ECO "B72"]
[WhiteElo "2318"]
[BlackElo "2281"]
[Annotator "NA"]
[PlyCount "72"]
[EventDate "2021.04.17"]
[EventType "swiss"]
[EventCountry "MNE"]
[SourceTitle "playchess.com"]
[Source "ChessBase"]
[SourceQuality "1"]
[TimeControl "40/5400+30:1800+30"]

1. e4 {[%emt 0:13:45]} c5 {[%emt 0:00:00]} 2. Nc3 {[%emt 0:00:32]} Nc6 {[%emt 0:00:56]} 3. Nge2 {[%emt 0:00:25]} g6 {[%emt 0:00:29]} 4. d4 {[%emt 0:00:20]} cxd4 5. Nxd4 {[%emt 0:00:09]} Bg7 {[%emt 0:00:33]} 6. Be3 {[%emt 0:00:10]} Nf6 {[%emt 0:00:31]} 7. Bc4 {[%emt 0:00:15]} O-O {[%emt 0:00:37]} 8. Bb3 {[%emt 0:00:09]} d6 {[%emt 0:01:44]} 9. h3 {[%emt 0:00:11]} Na5 {[%emt 0:02:46]} 10. O-O {[%emt 0:00:31]} a6 {[%emt 0:00:39]} 11. f4 {[%emt 0:05:56]} Nxb3 {[%emt 0:02:37]} 12. axb3 {[%emt 0:05:45]} b5 {[%emt 0:00:36]} 13. b4 {[%emt 0:03:35]} Bb7 {[%emt 0:00:26]} 14. Nb3 {[%emt 0:02:16]} Nxe4 {[%emt 0:04:40]} 15. Na5 {[%emt 0:06:20]} Nxc3 {[%emt 0:00:37]} 16. bxc3 {[%emt 0:00:24]} Be4 {[%emt 0:02:16]} 17. Ra3 {[%emt 0:03:24]} Rc8 {[%emt 0:03:09]} 18. Bd2 {[%emt 0:00:37]} Qb6+ {[%emt 0:01:52]} 19. Kh1 {[%emt 0:00:32]} d5 {[%emt 0:02:15]} 20. Qe2 {[%emt 0:00:29]} Bxc2 {[%emt 0:03:45]} 21. Qxe7 {[%emt 0:08:53]} Rfe8 {[%emt 0:00:42]} 22. Qh4 {[%emt 0:03:02]} Re2 {[%emt 0:00:25]} 23. Be1 {[%emt 0:00:11]} Be4 {[%emt 0:01:19]} 24. Bf2 {[%emt 0:00:22]} Qf6 {[%emt 0:05:31]} 25. Qg4 {[%emt 0:00:11]} Qe6 {[%emt 0:00:03]} 26. Qg3 {[%emt 0:00:36]} d4 {[%emt 0:02:46]} 27. Re1 {[%emt 0:11:20]} Rxe1+ {[%emt 0:04:27]} 28. Bxe1 {[%emt 0:00:03]} Bd5 {[%emt 0:02:45]} 29. Kh2 {[%emt 0:06:19]} Qe2 {[%emt 0:00:23]} 30. cxd4 {[%emt 0:07:23]} Rc2 {[%emt 0:00:23]} 31. h4 {[%emt 0:02:51]} Qxg2+ {[%emt 0:00:04]} 32. Qxg2 {[%emt 0:00:13]} Rxg2+ {[%emt 0:00:04]} 33. Kh3 {[%emt 0:00:19]} Re2 {[%emt 0:00:05]} 34. Ra1 {[%emt 0:01:20]} Re3+ {[%emt 0:02:49]} 35. Bg3 {[%emt 0:05:45]} Rd3 {[%emt 0:02:07]} 36. Re1 {[%emt 0:00:21]} Bxd4 {[%emt 0:01:08]} 0-1

[Event "Vladimir Bato Kontic Memorial 2021"]
[Site "Niksic"]
[Date "2021.04.20"]
[Round "7.9"]
[White "Kalezic, Blazo"]
[Black "Plenca, Jadranko"]
[Result "1-0"]
[ECO "C84"]
[WhiteElo "2456"]
[BlackElo "2472"]
[Annotator "ChessBase"]
[PlyCount "77"]
[EventDate "2021.04.17"]
[EventType "swiss"]
[EventCountry "MNE"]
[SourceTitle "playchess.com"]
[Source "ChessBase"]
[SourceQuality "1"]
[TimeControl "40/5400+30:1800+30"]

1. e4 {[%emt 0:00:00]} e5 {[%emt 0:19:15]} 2. Nf3 {[%emt 0:00:00]} Nc6 {[%emt 0:00:06]} 3. Bb5 {[%emt 0:00:05]} a6 {[%emt 0:00:07]} 4. Ba4 {[%emt 0:00:07]} Nf6 {[%emt 0:00:03]} 5. O-O {[%emt 0:00:12]} b5 {[%emt 0:00:40]} 6. Bb3 {[%emt 0:00:07]} Bb7 {[%emt 0:00:06]} 7. d3 {[%emt 0:02:39]} Be7 {[%emt 0:03:55]} 8. Nc3 {[%emt 0:01:49]} O-O {[%emt 0:03:47]} 9. a3 {[%emt 0:00:30]} Nd4 {[%emt 0:09:00]} 10. Ba2 {[%emt 0:00:45]} d6 {[%emt 0:04:27]} 11. Nxd4 {[%emt 0:02:03]} exd4 {[%emt 0:02:41]} 12. Ne2 {[%emt 0:00:13]} c5 {[%emt 0:00:05]} 13. Ng3 {[%emt 0:09:17]} d5 {[%emt 0:00:28]} 14. e5 {[%emt 0:11:17]} Nd7 {[%emt 0:00:05]} 15. Re1 {[%emt 0:00:43]} f5 {[%emt 0:00:39]} 16. f4 {[%emt 0:06:09]} Rc8 {[%emt 0:00:37]} 17. c3 {[%emt 0:06:33]} dxc3 {[%emt 0:00:50]} 18. bxc3 {[%emt 0:00:09]} Kh8 {[%emt 0:00:01]} 19. c4 {[%emt 0:04:13]} dxc4 {[%emt 0:05:22]} 20. dxc4 {[%emt 0:00:44]} Nb6 {[%emt 0:00:02]} 21. cxb5 {[%emt 0:01:40]} axb5 {[%emt 0:01:37]} 22. Be6 {[%emt 0:02:32]} Qc7 {[%emt 0:00:57]} 23. Nxf5 {[%emt 0:02:44]} Rcd8 {[%emt 0:04:59]} 24. Qg4 {[%emt 0:00:40]} Rxf5 {[%emt 0:00:12]} 25. Bxf5 {[%emt 0:00:34]} c4 {[%emt 0:00:05]} 26. Kh1 {[%emt 0:01:11]} Nd5 {[%emt 0:00:48]} 27. Qh3 {[%emt 0:10:25]} g6 {[%emt 0:00:42]} 28. Bxg6 {[%emt 0:00:30]} Bc5 {[%emt 0:01:43]} 29. e6 {[%emt 0:01:49]} Qg7 {[%emt 0:01:50]} 30. f5 {[%emt 0:01:31]} Bd4 {[%emt 0:02:34]} 31. Bh6 {[%emt 0:10:52]} Qe7 {[%emt 0:00:05]} 32. Bg5 {[%emt 0:01:02]} Bf6 {[%emt 0:00:20]} 33. Bxf6+ {[%emt 0:00:23]} Nxf6 {[%emt 0:00:05]} 34. Rad1 {[%emt 0:02:01]} Rg8 {[%emt 0:01:59]} 35. Re2 {[%emt 0:02:21]} c3 {[%emt 0:01:53]} 36. Qxc3 {[%emt 0:00:49]} Rg7 {[%emt 0:00:05]} 37. Rd7 {[%emt 0:03:37]} Nxd7 {[%emt 0:01:14]} 38. exd7 {[%emt 0:00:09]} Bxg2+ {[%emt 0:00:03]} 39. Kg1 {[%emt 0:00:30]} 1-0

[Event "Vladimir Bato Kontic Memorial 2021"]
[Site "Niksic"]
[Date "2021.04.20"]
[Round "7.11"]
[White "Tomic, Aleksandar"]
[Black "Sukovic, Andrej"]
[Result "1-0"]
[ECO "B53"]
[WhiteElo "2377"]
[BlackElo "2283"]
[Annotator "NA"]
[PlyCount "115"]
[EventDate "2021.04.17"]
[EventType "swiss"]
[EventCountry "MNE"]
[SourceTitle "playchess.com"]
[Source "ChessBase"]
[SourceQuality "1"]
[TimeControl "40/5400+30:1800+30"]

1. e4 c5 2. Nf3 d6 3. d4 cxd4 4. Qxd4 Nc6 5. Qe3 g6 6. c4 Bg7 7. h3 Nf6 8. Be2 O-O 9. O-O Nd7 10. Nc3 Nde5 11. Rd1 Nxf3+ 12. Bxf3 Qa5 13. Be2 Qc5 14. Qg3 Nd4 15. Bf1 Qh5 16. Bg5 f6 17. Bf4 e5 18. Be3 f5 19. exf5 Nxf5 20. Qg5 Nxe3 21. Qxe3 Bh6 22. Qe2 Qh4 23. Rxd6 Bf5 24. c5 Rae8 25. Qc4+ Qxc4 26. Bxc4+ Kh8 27. Bd5 Rc8 28. g4 Bc2 29. Be4 Bxe4 30. Nxe4 Rf4 31. Re1 Bf8 32. Rd5 Kg8 33. Kg2 Rc6 34. Re2 b6 35. b4 bxc5 36. bxc5 Re6 37. f3 Be7 38. Rb2 Rf8 39. Rb7 Ra8 40. Rdd7 Kf8 41. Rxa7 Ra6 42. Rxa8+ Rxa8 43. Rd2 Ke8 44. Kg3 h5 45. gxh5 gxh5 46. Rd5 h4+ 47. Kg4 Rxa2 48. Kf5 Ra3 49. Kg4 Ra2 50. Rxe5 Re2 51. Kf5 Rh2 52. c6 Rc2 53. Re6 Kf8 54. f4 Rc4 55. Nd6 Bxd6 56. Rxd6 Rc3 57. Kg4 Rc4 58. Kg5 1-0

[Event "Vladimir Bato Kontic Memorial 2021"]
[Site "Niksic"]
[Date "2021.04.21"]
[Round "8.1"]
[White "Sanal, Vahap"]
[Black "Suleymanli, Aydin"]
[Result "0-1"]
[ECO "B13"]
[WhiteElo "2572"]
[BlackElo "2520"]
[Annotator "RC"]
[PlyCount "84"]
[EventDate "2021.04.17"]
[EventType "swiss"]
[EventCountry "MNE"]
[SourceTitle "playchess.com"]
[Source "ChessBase"]
[SourceQuality "1"]
[TimeControl "40/5400+30:1800+30"]

1. e4 {[%emt 0:00:00]} c6 {[%emt 0:00:20]} 2. d4 {[%emt 0:00:00]} d5 {[%emt 0:00:05]} 3. exd5 {[%emt 0:00:00]} cxd5 {[%emt 0:00:10]} 4. Bd3 {[%emt 0:00:00]} Nc6 {[%emt 0:00:24]} 5. c3 {[%emt 0:00:05]} Qc7 {[%emt 0:00:03]} 6. h3 {[%emt 0:00:19]} e6 {[%emt 0:01:17]} 7. Nf3 {[%emt 0:01:52]} Bd6 {[%emt 0:00:05]} 8. O-O {[%emt 0:00:29]} Nge7 {[%emt 0:00:13]} 9. Re1 {[%emt 0:00:19]} O-O {[%emt 0:01:41]} 10. b3 {[%emt 1:31:56]} Rd8 {[%emt 0:05:16]} 11. Ba3 {[%emt 0:00:00]} f6 {[%emt 0:11:17]} 12. c4 {[%emt 0:00:00]} Ng6 {[%emt 0:13:58]} 13. Bxd6 {[%emt 0:00:00]} Qxd6 {[%emt 0:00:42]} 14. Nc3 {[%emt 0:00:00]} dxc4 {[%emt 0:03:51]} 15. Bxc4 {[%emt 0:00:00]} Nf4 {[%emt 0:10:29]} 16. Ne4 {[%emt 0:00:00]} Qe7 {[%emt 0:02:06]} 17. Rc1 {[%emt 0:00:00]} Na5 {[%emt 0:10:47]} 18. Qd2 {[%emt 0:00:00]} Nxc4 {[%emt 0:00:06]} 19. bxc4 {[%emt 0:00:00]} Ng6 {[%emt 0:02:05]} 20. h4 {[%emt 0:00:00]} Nf8 {[%emt 0:05:04]} 21. Qf4 {[%emt 0:00:00]} b6 {[%emt 0:03:08]} 22. h5 {[%emt 0:00:00]} h6 {[%emt 0:00:49]} 23. d5 {[%emt 0:00:00]} Qf7 {[%emt 0:02:55]} 24. Qg3 {[%emt 0:00:00]} Kh7 {[%emt 0:13:29]} 25. Nd4 {[%emt 0:00:00]} exd5 {[%emt 0:08:05]} 26. cxd5 {[%emt 0:00:00]} Rxd5 {[%emt 0:00:49]} 27. Nd6 {[%emt 0:00:00]} Qxh5 {[%emt 0:00:41]} 28. Ne2 {[%emt 0:02:00]} Rc5 {[%emt 0:01:26]} 29. Rxc5 {[%emt 0:03:44]} bxc5 {[%emt 0:00:44]} 30. Nf4 {[%emt 0:00:22]} Qg4 {[%emt 0:01:37]} 31. Qd3+ {[%emt 0:00:38]} Ng6 {[%emt 0:01:00]} 32. Nd5 {[%emt 0:00:49]} Qd4 {[%emt 0:00:36]} 33. Re7 {[%emt 0:00:59]} Qa1+ {[%emt 0:00:36]} 34. Kh2 {[%emt 0:00:08]} f5 {[%emt 0:00:28]} 35. Re3 {[%emt 0:03:10]} Qd4 {[%emt 0:00:26]} 36. Qb3 {[%emt 0:00:38]} c4 {[%emt 0:00:33]} 37. Qb5 {[%emt 0:00:10]} c3 {[%emt 0:00:32]} 38. Qc6 {[%emt 0:00:34]} Ne5 {[%emt 0:00:31]} 39. Qxa8 {[%emt 0:00:21]} Ng4+ {[%emt 0:00:20]} 40. Kh3 {[%emt 0:00:00]} Nxe3 {[%emt 0:00:00]} 41. Nxe3 {[%emt 0:17:49]} Bd7 {[%emt 0:21:10]} 42. Nf7 {[%emt 0:10:48]} f4+ {[%emt 0:01:26]} 0-1

[Event "Vladimir Bato Kontic Memorial 2021"]
[Site "Niksic"]
[Date "2021.04.21"]
[Round "8.5"]
[White "Kisic, Bozidar"]
[Black "Osmak, Iulija"]
[Result "0-1"]
[ECO "D00"]
[WhiteElo "2263"]
[BlackElo "2428"]
[Annotator "ChessBase"]
[PlyCount "94"]
[EventDate "2021.04.17"]
[EventType "swiss"]
[EventCountry "MNE"]
[SourceTitle "playchess.com"]
[Source "ChessBase"]
[SourceQuality "1"]
[TimeControl "40/5400+30:1800+30"]

1. d4 {[%emt 0:00:03]} e6 {[%emt 0:00:00]} 2. Bf4 {[%emt 0:02:59]} d5 {[%emt 0:02:09]} 3. Nc3 {[%emt 0:01:39]} a6 {[%emt 0:03:10]} 4. e4 {[%emt 0:04:15]} Nf6 {[%emt 0:01:26]} 5. Bd3 {[%emt 0:04:04]} Nc6 {[%emt 0:06:56]} 6. Nf3 {[%emt 0:05:23]} Nb4 {[%emt 0:03:44]} 7. O-O {[%emt 0:04:19]} Be7 {[%emt 0:04:50]} 8. a3 {[%emt 0:10:07]} Nxd3 {[%emt 0:00:21]} 9. Qxd3 {[%emt 0:01:19]} Bd7 {[%emt 0:08:44]} 10. Ne5 {[%emt 0:12:08]} O-O {[%emt 0:02:07]} 11. Nxd7 {[%emt 0:05:01]} Qxd7 {[%emt 0:00:09]} 12. exd5 {[%emt 0:01:01]} exd5 {[%emt 0:03:55]} 13. Rfe1 {[%emt 0:01:09]} Rae8 {[%emt 0:04:08]} 14. h3 {[%emt 0:03:18]} Bd8 {[%emt 0:06:09]} 15. Be5 {[%emt 0:01:31]} Re6 {[%emt 0:02:12]} 16. Re2 {[%emt 0:02:52]} Rfe8 {[%emt 0:03:07]} 17. Rae1 {[%emt 0:00:52]} Qc6 {[%emt 0:03:41]} 18. Bxf6 {[%emt 0:09:20]} Bxf6 {[%emt 0:01:32]} 19. Rxe6 {[%emt 0:02:41]} Rxe6 {[%emt 0:00:46]} 20. Rxe6 {[%emt 0:00:39]} Qxe6 {[%emt 0:00:54]} 21. Ne2 {[%emt 0:01:45]} g6 {[%emt 0:03:21]} 22. c3 {[%emt 0:01:21]} c6 {[%emt 0:01:21]} 23. Kf1 {[%emt 0:01:10]} Bg5 {[%emt 0:01:23]} 24. f4 {[%emt 0:06:07]} Bh4 {[%emt 0:02:52]} 25. Kg1 {[%emt 0:01:26]} f5 {[%emt 0:03:39]} 26. g3 {[%emt 0:01:18]} Be7 {[%emt 0:00:26]} 27. Kf2 {[%emt 0:02:00]} Qe4 {[%emt 0:00:49]} 28. Qxe4 {[%emt 0:00:42]} dxe4 {[%emt 0:09:50]} 29. Ke3 {[%emt 0:02:41]} Kf7 {[%emt 0:01:55]} 30. Nc1 {[%emt 0:01:25]} Ke6 {[%emt 0:02:10]} 31. Nb3 {[%emt 0:04:37]} b5 {[%emt 0:02:58]} 32. Nd2 {[%emt 0:02:21]} Kd5 {[%emt 0:02:21]} 33. Nb3 {[%emt 0:02:38]} Bd6 {[%emt 0:03:12]} 34. Ke2 {[%emt 0:00:57]} h6 {[%emt 0:05:10]} 35. h4 {[%emt 0:01:05]} Bc7 {[%emt 0:01:56]} 36. Nd2 {[%emt 0:00:28]} Bb6 {[%emt 0:02:14]} 37. Nf1 {[%emt 0:00:23]} c5 {[%emt 0:00:19]} 38. Ne3+ {[%emt 0:00:28]} Kd6 {[%emt 0:00:34]} 39. h5 {[%emt 0:01:01]} cxd4 {[%emt 0:01:06]} 40. cxd4 {[%emt 0:00:00]} Bxd4 {[%emt 0:00:00]} 41. hxg6 {[%emt 0:16:09]} Ke6 {[%emt 0:16:54]} 42. g4 {[%emt 0:07:15]} fxg4 {[%emt 0:01:12]} 43. Nxg4 {[%emt 0:07:07]} h5 {[%emt 0:04:26]} 44. Ne3 {[%emt 0:00:52]} h4 {[%emt 0:01:08]} 45. Nf1 {[%emt 0:01:50]} Kf5 {[%emt 0:01:22]} 46. Ne3+ {[%emt 0:00:39]} Kxg6 {[%emt 0:00:41]} 47. Nd5 {[%emt 0:00:18]} h3 {[%emt 0:00:54]} 0-1

[Event "Vladimir Bato Kontic Memorial 2021"]
[Site "Niksic"]
[Date "2021.04.21"]
[Round "8.9"]
[White "Miletic, Vuk"]
[Black "Runic, Zoran"]
[Result "1/2-1/2"]
[ECO "D85"]
[WhiteElo "2254"]
[BlackElo "2378"]
[Annotator "ChessBase"]
[PlyCount "91"]
[EventDate "2021.04.17"]
[EventType "swiss"]
[EventCountry "MNE"]
[SourceTitle "playchess.com"]
[Source "ChessBase"]
[SourceQuality "1"]
[TimeControl "40/5400+30:1800+30"]

1. d4 {[%emt 0:00:00]} Nf6 {[%emt 0:00:00]} 2. c4 {[%emt 0:00:00]} g6 {[%emt 0:00:00]} 3. Nc3 {[%emt 0:00:00]} d5 {[%emt 0:00:18]} 4. cxd5 {[%emt 0:00:11]} Nxd5 {[%emt 0:00:07]} 5. e4 {[%emt 0:00:02]} Nxc3 {[%emt 0:00:18]} 6. bxc3 {[%emt 0:00:04]} Bg7 {[%emt 0:00:23]} 7. Be3 {[%emt 0:00:50]} c5 {[%emt 0:01:53]} 8. Nf3 {[%emt 0:07:55]} O-O {[%emt 0:04:47]} 9. Qd2 {[%emt 0:01:38]} cxd4 {[%emt 0:00:21]} 10. cxd4 {[%emt 0:00:23]} Bg4 {[%emt 0:03:20]} 11. Be2 {[%emt 0:14:52]} Nc6 {[%emt 0:06:03]} 12. Rd1 {[%emt 0:02:34]} Na5 {[%emt 0:02:01]} 13. Bh6 {[%emt 0:08:19]} Bxf3 {[%emt 0:00:37]} 14. gxf3 {[%emt 0:00:21]} e6 {[%emt 0:04:42]} 15. h4 {[%emt 0:06:22]} Bxh6 {[%emt 0:01:05]} 16. Qxh6 {[%emt 0:00:05]} Qf6 {[%emt 0:00:05]} 17. h5 {[%emt 0:17:42]} Rfd8 {[%emt 0:00:31]} 18. hxg6 {[%emt 0:01:23]} hxg6 {[%emt 0:00:08]} 19. e5 {[%emt 0:13:26]} Qg7 {[%emt 0:00:07]} 20. Qe3 {[%emt 0:06:13]} Nc6 {[%emt 0:00:39]} 21. f4 {[%emt 0:04:36]} Rac8 {[%emt 0:01:46]} 22. Bf3 {[%emt 0:01:55]} Nb4 {[%emt 0:00:38]} 23. O-O {[%emt 0:00:23]} Nc2 {[%emt 0:02:14]} 24. Qe4 {[%emt 0:00:48]} b5 {[%emt 0:06:28]} 25. d5 {[%emt 0:02:27]} g5 {[%emt 0:06:38]} 26. dxe6 {[%emt 0:03:17]} gxf4+ {[%emt 0:01:03]} 27. Bg2 {[%emt 0:00:18]} fxe6 {[%emt 0:00:50]} 28. Qxf4 {[%emt 0:01:06]} Rf8 {[%emt 0:00:14]} 29. Qg3 {[%emt 0:01:49]} Rc4 {[%emt 0:05:15]} 30. Rd7 {[%emt 0:01:39]} Qxg3 {[%emt 0:01:44]} 31. fxg3 {[%emt 0:00:01]} Ra4 {[%emt 0:00:10]} 32. Rf6 {[%emt 0:02:22]} Rxf6 {[%emt 0:05:19]} 33. exf6 {[%emt 0:00:01]} Nd4 {[%emt 0:01:09]} 34. Bf1 {[%emt 0:02:27]} a6 {[%emt 0:00:33]} 35. Bd3 {[%emt 0:00:56]} Nf3+ {[%emt 0:00:22]} 36. Kf2 {[%emt 0:00:24]} Ne5 {[%emt 0:00:04]} 37. Rg7+ {[%emt 0:00:45]} Kf8 {[%emt 0:00:06]} 38. Be2 {[%emt 0:00:31]} Rxa2 {[%emt 0:14:16]} 39. g4 {[%emt 0:00:41]} Rd2 {[%emt 0:07:17]} 40. g5 {[%emt 0:00:00]} Rd7 {[%emt 0:00:00]} 41. Rxd7 {[%emt 0:15:34]} Nxd7 {[%emt 0:15:47]} 42. Ke3 {[%emt 0:08:02]} Nxf6 {[%emt 0:01:14]} 43. gxf6 {[%emt 0:00:01]} Kf7 {[%emt 0:00:07]} 44. Kd4 {[%emt 0:00:05]} Kxf6 {[%emt 0:00:06]} 45. Kc5 {[%emt 0:05:17]} Kf5 {[%emt 0:01:45]} 46. Bf3 {[%emt 0:00:37]} 1/2-1/2